fUSD/lending_fUSD_20241116
["ID","MTS","AMOUNT","RATE_DAILY","PERIOD"]
[342349510,1731763839971,-397.165,0.0001,2]
[342349511,1731763839982,-8092.65541961,0.0001,2]
[342349512,1731763839998,-1245.52845074,0.0001,2]
[342349513,1731763840018,-655.6964493,0.0001,2]
[342349514,1731763840029,-351.77940241,0.0001,2]
[342349515,1731763840041,-756.82627028,0.0001,2]
[342349516,1731763840054,-2510.72,0.0001,2]
[342349517,1731763840066,-8752.22233078,0.0001,2]
[342349518,1731763840077,-310.51498025,0.0001,2]
[342349519,1731763840182,-3255.79999998,0.0001,2]
[342349520,1731763840194,-397.63098387,0.0001,2]
[342349521,1731763840206,-645.108,0.0001,2]
[342349522,1731763840217,-1252.14570728,0.0001,2]
[342349523,1731763840229,-3192.18893,0.0001,2]
[342349524,1731763840240,-273.513,0.0001,2]
[342349525,1731763840259,-11600.0,0.0001,2]
[342349526,1731763840273,-320.28066761,0.0001,2]
[342349527,1731763840288,-1940.79,0.0001,2]
[342349528,1731763840300,-500.0,0.0001,2]
[342349529,1731763840315,-729.808704,0.0001,2]
[342349530,1731763840326,-9920.5,0.0001,2]
[342349531,1731763840337,-3798.43220689,0.0001,2]
[342349532,1731763840349,-910.39,0.0001,2]
[342349533,1731763840360,-439.20110691,0.0001,2]
[342349534,1731763840371,-706.04,0.0001,2]
[342349544,1731763843155,-15759.7041,9.896e-05,2]
[342349545,1731763843165,-698.04369948,9.999e-05,2]
[342349546,1731763843175,-303975.93756081,0.0001,2]
[342349547,1731763843187,-500.0,0.0001,2]
[342349548,1731763843214,-10003.93457314,0.0001,2]
[342349549,1731763843275,-448.60442931,0.0001,2]
[342349550,1731763843287,-4077.49325047,0.0001,2]
[342349551,1731763843298,-344.05114291,0.0001,2]
[342349552,1731763843309,-523.34285846,0.0001,2]
[342349553,1731763843320,-432.0,0.0001,2]
[342349554,1731763843343,-12175.6,0.0001,2]
[342349555,1731763843354,-4747.68496201,0.0001,2]
[342349556,1731763843366,-20375.25148172,0.0001,2]
[342349557,1731763843406,-708.35152064,0.0001,2]
[342349558,1731763843417,-381.82056366,0.0001,2]
[342349559,1731763843429,-293.30521316,0.0001,2]
[342349560,1731763843440,-1605.57003,0.0001,2]
[342349561,1731763843451,-2833.13889606,0.0001,2]
[342349562,1731763843463,-10564.43199185,0.0001,2]
[342349564,1731763843482,-3007.59201622,0.0001,2]
[342349567,1731763843493,-6065.06685707,0.0001,2]
[342349569,1731763843505,-31852.99999999,0.0001,2]
[342349571,1731763843518,-11287.94995,0.0001,2]
[342349573,1731763843530,-931.13278959,0.0001,2]
[342349607,1731763846089,-500.0,9.996e-05,2]
[342349608,1731763846103,-500.0,9.996e-05,2]
[342349609,1731763846113,-500.0,9.996e-05,2]
[342349610,1731763846122,-500.0,9.996e-05,2]
[342349611,1731763846132,-500.0,9.996e-05,2]
[342349612,1731763846142,-500.0,9.996e-05,2]
[342349613,1731763846152,-500.0,9.996e-05,2]
[342349614,1731763846161,-500.0,9.996e-05,2]
[342349615,1731763846172,-500.0,9.996e-05,2]
[342349616,1731763846182,-500.0,9.996e-05,2]
[342349617,1731763846191,-500.0,9.998e-05,2]
[342349618,1731763846200,-57207.24967027,0.0001,2]
[342349619,1731763846230,-500.0,9.998e-05,2]
[342349620,1731763846240,-5880.0,0.0001,2]
[342349621,1731763846271,-500.0,9.999e-05,2]
[342349622,1731763846281,-2553.46181636,0.0001,2]
[342349623,1731763846292,-280892.10014983,0.0001,2]
[342349624,1731763846303,-38036.395,0.0001,2]
[342349625,1731763846314,-106499.978,0.0001,2]
[342349626,1731763846350,-3287.58136448,0.0001,2]
[342349634,1731763846525,-8768.41710921,0.0001,2]
[342349636,1731763846538,-995.21147476,0.0001,2]
[342349639,1731763846558,-500.0,9.999e-05,2]
[342349641,1731763846567,-7616.10326539,0.0001,2]
[342349874,1731764119505,151.066,0.0001875,60]
[342349875,1731764721176,942.83,8.219e-05,2]
[342349876,1731764841123,-1000.0,8.85e-05,2]
[342349877,1731764841147,-348.01306676,8.872e-05,2]
[342349878,1731764842190,-4520.72305812,8.872e-05,2]
[342349879,1731764974104,-501.74387512,8.872e-05,2]
[342349880,1731764974127,-165.28,8.893e-05,2]
[342349881,1731764974155,-312.97612488,8.93e-05,2]
[342349902,1731765032229,-83.82387512,8.93e-05,2]
[342349903,1731765032238,-150.0,9e-05,2]
[342349904,1731765032247,-287.65276488,9e-05,3]
[342349905,1731765032258,-212.34723512,9e-05,3]
[342349906,1731765032267,-98.06234479,9.1e-05,3]
[342349907,1731765032283,-901.93765521,9.1e-05,3]
[342349908,1731765032291,-250.0,9.174e-05,2]
[342349909,1731765032300,-1500.0,9.2e-05,3]
[342349910,1731765032308,-2000.0,9.3e-05,3]
[342349911,1731765032318,-2600.0,9.4e-05,3]
[342349912,1731765032327,-500.0,9.5e-05,3]
[342349913,1731765032335,-500.0,9.6e-05,3]
[342349914,1731765032343,-299.99,9.67e-05,2]
[342349915,1731765032352,-577.1,9.678e-05,2]
[342349916,1731765032360,-500.0,9.7e-05,3]
[342349917,1731765032368,-150.0,9.735e-05,2]
[342349918,1731765032376,-565.1159,9.796e-05,2]
[342349919,1731765032384,-525.60014479,9.796e-05,2]
[342349920,1731765032467,-4657.500001,9.796e-05,2]
[342349921,1731765032577,-5741.35515421,9.796e-05,2]
[342349922,1731765032585,-150.0,9.799e-05,2]
[342349923,1731765032595,-57159.28861898,9.8e-05,2]
[342349924,1731765032604,-8460.66704,9.8e-05,2]
[342349925,1731765032612,-500.0,9.8e-05,3]
[342349926,1731765032621,-968.32,9.878e-05,2]
[342349927,1731765032628,-968.32,9.878e-05,2]
[342349928,1731765032638,-56429.8687,9.896e-05,2]
[342349929,1731765032646,-28863.9821,9.896e-05,2]
[342349930,1731765032656,-500.0,9.897e-05,2]
[342349931,1731765032665,-24650.7085,9.9e-05,2]
[342349932,1731765032674,-1000.0,9.9e-05,2]
[342349933,1731765032688,-13590.5594,9.9e-05,2]
[342349934,1731765032697,-800.0,9.9e-05,3]
[342349935,1731765032706,-1000.0,9.956e-05,2]
[342349936,1731765032715,-500.0,9.973e-05,2]
[342349937,1731765032723,-162.7165451,9.973e-05,2]
[342349938,1731765032732,-500.0,9.973e-05,2]
[342349939,1731765032739,-500.0,9.994e-05,2]
[342349940,1731765032745,-500.0,9.994e-05,2]
[342349941,1731765032752,-500.0,9.994e-05,2]
[342349943,1731765032758,-553.14889676,9.994e-05,2]
[342349944,1731765032767,-607.382,9.995e-05,2]
[342349946,1731765032776,-1410.76,9.995e-05,2]
[342349948,1731765032784,-1186.32,9.995e-05,2]
[342349950,1731765032791,-500.0,9.995e-05,2]
[342349952,1731765032799,-500.0,9.995e-05,2]
[342349954,1731765032806,-3924.72,9.995e-05,2]
[342349956,1731765032814,-3530.86,9.995e-05,2]
[342349958,1731765032821,-3595.26,9.995e-05,2]
[342349960,1731765032828,-1278.31,9.995e-05,2]
[342349962,1731765032837,-500.0,9.995e-05,2]
[342349964,1731765032845,-503.82,9.995e-05,2]
[342349966,1731765032854,-500.0,9.995e-05,2]
[342349967,1731765032860,-609.69,9.995e-05,2]
[342349969,1731765032867,-500.0,9.995e-05,2]
[342349971,1731765032875,-500.0,9.995e-05,2]
[342349973,1731765032885,-500.0,9.995e-05,2]
[342349975,1731765032895,-500.0,9.995e-05,2]
[342349977,1731765032904,-500.0,9.995e-05,2]
[342349979,1731765032913,-500.0,9.995e-05,2]
[342349981,1731765032923,-500.0,9.995e-05,2]
[342349983,1731765032940,-500.0,9.995e-05,2]
[342349985,1731765032953,-500.0,9.995e-05,2]
[342349987,1731765032963,-500.0,9.995e-05,2]
[342349989,1731765032973,-500.0,9.995e-05,2]
[342349991,1731765032982,-1072.81,9.995e-05,2]
[342349993,1731765032991,-500.0,9.995e-05,2]
[342349995,1731765033001,-500.0,9.995e-05,2]
[342349997,1731765033011,-500.0,9.995e-05,2]
[342349999,1731765033020,-2951.39,9.995e-05,2]
[342350001,1731765033032,-2025.04,9.995e-05,2]
[342350003,1731765033043,-500.0,9.995e-05,2]
[342350005,1731765033053,-1604.11,9.996e-05,2]
[342350007,1731765033063,-1604.11,9.996e-05,2]
[342350009,1731765033073,-1604.11,9.996e-05,2]
[342350011,1731765033083,-1604.11,9.996e-05,2]
[342350013,1731765033092,-1604.11,9.996e-05,2]
[342350015,1731765033102,-500.8082548,9.996e-05,2]
[342350017,1731765033112,-638.74,9.996e-05,2]
[342350019,1731765033123,-501.41526289,9.996e-05,2]
[342350021,1731765033133,-285.31090994,9.996e-05,2]
[342350023,1731765033143,-1542.25,9.996e-05,2]
[342350025,1731765033153,-1542.25,9.996e-05,2]
[342350027,1731765033163,-1542.25,9.996e-05,2]
[342350029,1731765033173,-1542.25,9.996e-05,2]
[342350031,1731765033190,-1542.25,9.996e-05,2]
[342350033,1731765033200,-500.0,9.996e-05,2]
[342350035,1731765033210,-500.0,9.996e-05,2]
[342350037,1731765033221,-500.0,9.996e-05,2]
[342350039,1731765033231,-500.0,9.996e-05,2]
[342350042,1731765033241,-500.0,9.996e-05,2]
[342350044,1731765033251,-500.0,9.996e-05,2]
[342350045,1731765033262,-500.0,9.996e-05,2]
[342350047,1731765033272,-500.0,9.996e-05,2]
[342350049,1731765033281,-554.23969999,9.996e-05,2]
[342350052,1731765033291,-500.0,9.996e-05,2]
[342350053,1731765033301,-283.41393623,9.996e-05,2]
[342350056,1731765033310,-500.0,9.996e-05,2]
[342350057,1731765033319,-500.0,9.996e-05,2]
[342350059,1731765033329,-500.0,9.996e-05,2]
[342350061,1731765033339,-248.47453301,9.996e-05,2]
[342350063,1731765033348,-500.0,9.996e-05,2]
[342350066,1731765033358,-500.0,9.996e-05,2]
[342350068,1731765033367,-500.0,9.996e-05,2]
[342350070,1731765033377,-500.0,9.996e-05,2]
[342350072,1731765033387,-500.0,9.996e-05,2]
[342350073,1731765033396,-500.0,9.996e-05,2]
[342350075,1731765033405,-512.55524026,9.996e-05,2]
[342350077,1731765033415,-500.0,9.996e-05,2]
[342350079,1731765033424,-500.0,9.996e-05,2]
[342350081,1731765033443,-264.549985,9.996e-05,2]
[342350083,1731765033455,-500.0,9.996e-05,2]
[342350085,1731765033465,-500.0,9.996e-05,2]
[342350087,1731765033474,-500.0,9.996e-05,2]
[342350089,1731765033485,-500.0,9.996e-05,2]
[342350091,1731765033497,-558.1443564,9.996e-05,2]
[342350093,1731765033506,-500.0,9.996e-05,2]
[342350095,1731765033516,-500.0,9.996e-05,2]
[342350097,1731765033525,-500.0,9.996e-05,2]
[342350099,1731765033535,-500.0,9.996e-05,2]
[342350101,1731765033545,-500.0,9.996e-05,2]
[342350103,1731765033555,-500.0,9.996e-05,2]
[342350105,1731765033565,-630.24,9.996e-05,2]
[342350107,1731765033575,-500.0,9.996e-05,2]
[342350109,1731765033585,-500.0,9.996e-05,2]
[342350111,1731765033595,-500.0,9.996e-05,2]
[342350113,1731765033604,-500.0,9.996e-05,2]
[342350115,1731765033614,-500.0,9.996e-05,2]
[342350117,1731765033624,-500.0,9.996e-05,2]
[342350119,1731765033633,-2795.54,9.996e-05,2]
[342350121,1731765033643,-2795.54,9.996e-05,2]
[342350123,1731765033652,-2795.54,9.996e-05,2]
[342350125,1731765033661,-2795.54,9.996e-05,2]
[342350126,1731765033671,-2795.54,9.996e-05,2]
[342350129,1731765033685,-500.0,9.996e-05,2]
[342350130,1731765033694,-500.0,9.996e-05,2]
[342350132,1731765033704,-500.0,9.996e-05,2]
[342350135,1731765033713,-500.0,9.996e-05,2]
[342350137,1731765033723,-500.0,9.996e-05,2]
[342350138,1731765033732,-500.0,9.996e-05,2]
[342350141,1731765033742,-500.0,9.996e-05,2]
[342350143,1731765033752,-500.0,9.996e-05,2]
[342350145,1731765033761,-500.0,9.996e-05,2]
[342350146,1731765033771,-288.73285852,9.996e-05,2]
[342350148,1731765033780,-500.0,9.996e-05,2]
[342350150,1731765033789,-500.0,9.996e-05,2]
[342350152,1731765033798,-500.0,9.996e-05,2]
[342350154,1731765033807,-500.0,9.996e-05,2]
[342350156,1731765033816,-500.0,9.996e-05,2]
[342350158,1731765033825,-500.0,9.996e-05,2]
[342350160,1731765033836,-500.0,9.996e-05,2]
[342350162,1731765033846,-541.85017236,9.996e-05,2]
[342350164,1731765033855,-500.0,9.996e-05,2]
[342350166,1731765033865,-500.0,9.996e-05,2]
[342350168,1731765033875,-500.0,9.996e-05,2]
[342350170,1731765033884,-500.0,9.996e-05,2]
[342350172,1731765033893,-500.0,9.996e-05,2]
[342350174,1731765033903,-500.0,9.996e-05,2]
[342350176,1731765033912,-500.0,9.996e-05,2]
[342350178,1731765033922,-500.0,9.996e-05,2]
[342350180,1731765033934,-500.0,9.996e-05,2]
[342350182,1731765033944,-500.0,9.996e-05,2]
[342350184,1731765033954,-151474.35871388,9.996e-05,2]
[342350189,1731765033988,-1554.06408901,9.996e-05,2]
[342350191,1731765033999,-976.55251709,9.996e-05,2]
[342350292,1731765038720,-3554.42222273,9.996e-05,2]
[342350293,1731765038753,-1277.04253502,9.996e-05,2]
[342350294,1731765038765,-303.97448345,9.996e-05,2]
[342350295,1731765038777,-404.32855073,9.996e-05,2]
[342350296,1731765038789,-26751.237,9.996e-05,2]
[342350297,1731765038800,-25800.0,9.996e-05,2]
[342350298,1731765038812,-9748.56625755,9.996e-05,2]
[342350299,1731765038823,-8025.61151504,9.996e-05,2]
[342350300,1731765038835,-2041.12688453,9.996e-05,2]
[342350301,1731765038845,-1604.11,9.998e-05,2]
[342350302,1731765038855,-19.33854257,9.998e-05,2]
[342350303,1731765038866,-1522.91145743,9.998e-05,2]
[342350304,1731765038876,-463.93211316,9.998e-05,2]
[342350306,1731765038888,-946.82788684,9.998e-05,2]
[342350308,1731765038897,-1410.76,9.998e-05,2]
[342350310,1731765038906,-1410.76,9.998e-05,2]
[342350312,1731765038915,-1410.76,9.998e-05,2]
[342350313,1731765038925,-1186.32,9.998e-05,2]
[342350314,1731765038947,-1186.32,9.998e-05,2]
[342350315,1731765038957,-1186.32,9.998e-05,2]
[342350316,1731765038967,-1186.32,9.998e-05,2]
[342350317,1731765038977,-500.0,9.998e-05,2]
[342350318,1731765038987,-500.0,9.998e-05,2]
[342350319,1731765038997,-500.0,9.998e-05,2]
[342350320,1731765039007,-500.0,9.998e-05,2]
[342350321,1731765039016,-500.0,9.998e-05,2]
[342350322,1731765039026,-500.0,9.998e-05,2]
[342350323,1731765039035,-500.0,9.998e-05,2]
[342350324,1731765039044,-500.0,9.998e-05,2]
[342350325,1731765039054,-3924.72,9.998e-05,2]
[342350326,1731765039064,-3924.72,9.998e-05,2]
[342350327,1731765039073,-3924.72,9.998e-05,2]
[342350328,1731765039083,-3924.72,9.998e-05,2]
[342350329,1731765039093,-3530.86,9.998e-05,2]
[342350330,1731765039102,-3530.86,9.998e-05,2]
[342350331,1731765039112,-3530.86,9.998e-05,2]
[342350332,1731765039122,-3530.86,9.998e-05,2]
[342350333,1731765039131,-3595.26,9.998e-05,2]
[342350334,1731765039140,-3595.26,9.998e-05,2]
[342350335,1731765039150,-3595.26,9.998e-05,2]
[342350336,1731765039159,-3595.26,9.998e-05,2]
[342350337,1731765039169,-1278.31,9.998e-05,2]
[342350338,1731765039178,-1278.31,9.998e-05,2]
[342350339,1731765039189,-1278.31,9.998e-05,2]
[342350340,1731765039198,-1278.31,9.998e-05,2]
[342350341,1731765039208,-500.0,9.998e-05,2]
[342350342,1731765039218,-500.0,9.998e-05,2]
[342350343,1731765039227,-500.0,9.998e-05,2]
[342350344,1731765039237,-530.36147786,9.998e-05,2]
[342350345,1731765039246,-500.0,9.998e-05,2]
[342350346,1731765039255,-500.0,9.998e-05,2]
[342350347,1731765039265,-2795.54,9.998e-05,2]
[342350348,1731765039274,-500.0,9.998e-05,2]
[342350349,1731765039285,-500.0,9.998e-05,2]
[342350350,1731765039295,-500.0,9.998e-05,2]
[342350351,1731765039304,-609.69,9.998e-05,2]
[342350352,1731765039314,-609.69,9.998e-05,2]
[342350353,1731765039323,-609.69,9.998e-05,2]
[342350354,1731765039332,-609.69,9.998e-05,2]
[342350355,1731765039342,-500.0,9.998e-05,2]
[342350356,1731765039351,-435.97,9.998e-05,2]
[342350357,1731765039362,-500.0,9.998e-05,2]
[342350358,1731765039371,-500.0,9.998e-05,2]
[342350359,1731765039380,-500.0,9.998e-05,2]
[342350360,1731765039390,-500.0,9.998e-05,2]
[342350361,1731765039399,-500.0,9.998e-05,2]
[342350362,1731765039409,-500.0,9.998e-05,2]
[342350363,1731765039419,-500.0,9.998e-05,2]
[342350364,1731765039428,-500.0,9.998e-05,2]
[342350365,1731765039444,-500.0,9.998e-05,2]
[342350366,1731765039453,-500.0,9.998e-05,2]
[342350367,1731765039463,-500.0,9.998e-05,2]
[342350368,1731765039476,-500.0,9.998e-05,2]
[342350369,1731765039485,-500.0,9.998e-05,2]
[342350370,1731765039496,-500.0,9.998e-05,2]
[342350371,1731765039508,-259.03385684,9.998e-05,2]
[342350372,1731765039523,-500.0,9.998e-05,2]
[342350373,1731765039532,-319.03625424,9.998e-05,2]
[342350374,1731765039541,-500.0,9.998e-05,2]
[342350375,1731765039551,-500.0,9.998e-05,2]
[342350376,1731765039560,-356.39,9.998e-05,2]
[342350377,1731765039569,-500.0,9.998e-05,2]
[342350378,1731765039579,-500.0,9.998e-05,2]
[342350379,1731765039589,-412.11,9.998e-05,2]
[342350380,1731765039598,-500.0,9.998e-05,2]
[342350381,1731765039607,-500.0,9.998e-05,2]
[342350382,1731765039616,-500.0,9.998e-05,2]
[342350383,1731765039625,-500.0,9.998e-05,2]
[342350384,1731765039635,-500.0,9.998e-05,2]
[342350385,1731765039644,-462.12490724,9.998e-05,2]
[342350386,1731765039653,-1072.81,9.998e-05,2]
[342350387,1731765039662,-1072.81,9.998e-05,2]
[342350388,1731765039671,-1072.81,9.998e-05,2]
[342350389,1731765039682,-1072.81,9.998e-05,2]
[342350390,1731765039691,-500.0,9.998e-05,2]
[342350391,1731765039700,-500.0,9.998e-05,2]
[342350392,1731765039710,-500.0,9.998e-05,2]
[342350393,1731765039720,-500.0,9.998e-05,2]
[342350394,1731765039730,-500.0,9.998e-05,2]
[342350395,1731765039739,-500.0,9.998e-05,2]
[342350396,1731765039749,-500.0,9.998e-05,2]
[342350397,1731765039759,-500.0,9.998e-05,2]
[342350398,1731765039768,-500.0,9.998e-05,2]
[342350399,1731765039777,-500.0,9.998e-05,2]
[342350400,1731765039786,-500.0,9.998e-05,2]
[342350401,1731765039795,-500.0,9.998e-05,2]
[342350402,1731765039805,-500.0,9.998e-05,2]
[342350403,1731765039814,-500.0,9.998e-05,2]
[342350404,1731765039823,-416.78028346,9.998e-05,2]
[342350405,1731765039832,-2951.39,9.998e-05,2]
[342350406,1731765039842,-2951.39,9.998e-05,2]
[342350407,1731765039852,-2951.39,9.998e-05,2]
[342350408,1731765039861,-2951.39,9.998e-05,2]
[342350409,1731765039870,-2951.39,9.998e-05,2]
[342350410,1731765039880,-2025.04,9.998e-05,2]
[342350411,1731765039890,-2025.04,9.998e-05,2]
[342350412,1731765039899,-2025.04,9.998e-05,2]
[342350413,1731765039908,-2025.04,9.998e-05,2]
[342350414,1731765039917,-2025.04,9.998e-05,2]
[342350415,1731765039927,-500.0,9.998e-05,2]
[342350416,1731765039939,-500.0,9.998e-05,2]
[342350417,1731765039949,-500.0,9.998e-05,2]
[342350418,1731765039958,-500.0,9.998e-05,2]
[342350419,1731765039968,-500.0,9.998e-05,2]
[342350420,1731765039977,-587769.965569,9.999e-05,2]
[342350421,1731765039986,-2429.17,9.999e-05,2]
[342350422,1731765039996,-1604.11,9.999e-05,2]
[342350423,1731765040005,-1604.11,9.999e-05,2]
[342350424,1731765040014,-1604.11,9.999e-05,2]
[342350425,1731765040024,-1604.11,9.999e-05,2]
[342350426,1731765040034,-1604.11,9.999e-05,2]
[342350427,1731765040044,-1604.11,9.999e-05,2]
[342350428,1731765040054,-1604.11,9.999e-05,2]
[342350429,1731765040063,-1604.11,9.999e-05,2]
[342350430,1731765040073,-1604.11,9.999e-05,2]
[342350431,1731765040083,-1604.11,9.999e-05,2]
[342350432,1731765040095,-1604.11,9.999e-05,2]
[342350433,1731765040104,-1604.11,9.999e-05,2]
[342350434,1731765040114,-1604.11,9.999e-05,2]
[342350435,1731765040123,-1604.11,9.999e-05,2]
[342350436,1731765040133,-1604.11,9.999e-05,2]
[342350437,1731765040143,-1604.11,9.999e-05,2]
[342350438,1731765040153,-1604.11,9.999e-05,2]
[342350439,1731765040162,-1604.2168236,9.999e-05,2]
[342350440,1731765040171,-1542.25,9.999e-05,2]
[342350441,1731765040182,-1542.25,9.999e-05,2]
[342350442,1731765040192,-1542.25,9.999e-05,2]
[342350443,1731765040201,-1542.25,9.999e-05,2]
[342350444,1731765040211,-1542.25,9.999e-05,2]
[342350445,1731765040219,-1542.25,9.999e-05,2]
[342350446,1731765040229,-1542.25,9.999e-05,2]
[342350447,1731765040237,-1542.25,9.999e-05,2]
[342350448,1731765040247,-1542.25,9.999e-05,2]
[342350449,1731765040257,-1542.25,9.999e-05,2]
[342350450,1731765040267,-1542.25,9.999e-05,2]
[342350451,1731765040277,-1542.25,9.999e-05,2]
[342350452,1731765040287,-1542.25,9.999e-05,2]
[342350453,1731765040297,-1542.25,9.999e-05,2]
[342350454,1731765040306,-1542.25,9.999e-05,2]
[342350455,1731765040316,-1542.25,9.999e-05,2]
[342350456,1731765040325,-1542.25,9.999e-05,2]
[342350457,1731765040333,-1542.34503138,9.999e-05,2]
[342350458,1731765040342,-1410.76,9.999e-05,2]
[342350459,1731765040351,-1410.76,9.999e-05,2]
[342350460,1731765040361,-1410.76,9.999e-05,2]
[342350461,1731765040371,-1410.76,9.999e-05,2]
[342350462,1731765040380,-1410.76,9.999e-05,2]
[342350463,1731765040389,-1410.76,9.999e-05,2]
[342350464,1731765040399,-1410.76,9.999e-05,2]
[342350465,1731765040408,-1410.76,9.999e-05,2]
[342350466,1731765040417,-1410.76,9.999e-05,2]
[342350467,1731765040425,-1186.32,9.999e-05,2]
[342350468,1731765040435,-1410.76,9.999e-05,2]
[342350469,1731765040445,-1186.32,9.999e-05,2]
[342350470,1731765040455,-1410.76,9.999e-05,2]
[342350471,1731765040464,-1186.32,9.999e-05,2]
[342350472,1731765040474,-1410.76,9.999e-05,2]
[342350473,1731765040483,-1186.32,9.999e-05,2]
[342350474,1731765040492,-1410.76,9.999e-05,2]
[342350475,1731765040504,-1186.32,9.999e-05,2]
[342350476,1731765040514,-1410.76,9.999e-05,2]
[342350477,1731765040523,-1186.32,9.999e-05,2]
[342350478,1731765040532,-1410.76,9.999e-05,2]
[342350479,1731765040542,-1186.32,9.999e-05,2]
[342350480,1731765040550,-1410.76,9.999e-05,2]
[342350481,1731765040560,-1186.32,9.999e-05,2]
[342350482,1731765040569,-1410.76,9.999e-05,2]
[342350483,1731765040580,-1186.32,9.999e-05,2]
[342350484,1731765040590,-1410.76,9.999e-05,2]
[342350486,1731765040599,-1186.32,9.999e-05,2]
[342350487,1731765040609,-1410.88,9.999e-05,2]
[342350489,1731765040619,-1186.32,9.999e-05,2]
[342350490,1731765040628,-1186.32,9.999e-05,2]
[342350491,1731765040638,-1186.32,9.999e-05,2]
[342350492,1731765040647,-1186.32,9.999e-05,2]
[342350493,1731765040657,-1186.32,9.999e-05,2]
[342350494,1731765040667,-1186.32,9.999e-05,2]
[342350495,1731765040677,-1186.32,9.999e-05,2]
[342350496,1731765040688,-1186.32,9.999e-05,2]
[342350497,1731765040697,-1186.54,9.999e-05,2]
[342350498,1731765040706,-500.0,9.999e-05,2]
[342350499,1731765040715,-549.64,9.999e-05,2]
[342350500,1731765040725,-500.0,9.999e-05,2]
[342350501,1731765040734,-500.0,9.999e-05,2]
[342350502,1731765040744,-500.0,9.999e-05,2]
[342350503,1731765040753,-500.0,9.999e-05,2]
[342350504,1731765040763,-628.28,9.999e-05,2]
[342350505,1731765040772,-3924.72,9.999e-05,2]
[342350506,1731765040782,-3924.72,9.999e-05,2]
[342350507,1731765040791,-3924.72,9.999e-05,2]
[342350508,1731765040800,-3924.72,9.999e-05,2]
[342350509,1731765040810,-3924.72,9.999e-05,2]
[342350510,1731765040819,-3924.72,9.999e-05,2]
[342350511,1731765040829,-3924.72,9.999e-05,2]
[342350512,1731765040838,-3924.72,9.999e-05,2]
[342350513,1731765040847,-3924.72,9.999e-05,2]
[342350514,1731765040856,-3924.72,9.999e-05,2]
[342350515,1731765040866,-3924.72,9.999e-05,2]
[342350516,1731765040875,-3924.72,9.999e-05,2]
[342350517,1731765040884,-3924.72,9.999e-05,2]
[342350518,1731765040893,-3924.72,9.999e-05,2]
[342350519,1731765040903,-3924.72,9.999e-05,2]
[342350520,1731765040912,-3924.72,9.999e-05,2]
[342350521,1731765040922,-3924.72,9.999e-05,2]
[342350522,1731765040932,-3924.72,9.999e-05,2]
[342350523,1731765040941,-3924.85339706,9.999e-05,2]
[342350524,1731765040951,-1546.09739897,9.999e-05,2]
[342350525,1731765040961,-3530.86,9.999e-05,2]
[342350526,1731765040970,-3530.86,9.999e-05,2]
[342350527,1731765040984,-3530.86,9.999e-05,2]
[342350528,1731765040993,-3530.86,9.999e-05,2]
[342350529,1731765041003,-3530.86,9.999e-05,2]
[342350530,1731765041012,-3530.86,9.999e-05,2]
[342350531,1731765041021,-3530.86,9.999e-05,2]
[342350532,1731765041030,-3530.86,9.999e-05,2]
[342350533,1731765041040,-3530.86,9.999e-05,2]
[342350534,1731765041050,-3530.86,9.999e-05,2]
[342350535,1731765041059,-3530.86,9.999e-05,2]
[342350536,1731765041069,-3530.86,9.999e-05,2]
[342350537,1731765041078,-3530.86,9.999e-05,2]
[342350538,1731765041088,-3530.86,9.999e-05,2]
[342350539,1731765041098,-3530.86,9.999e-05,2]
[342350540,1731765041108,-3530.86,9.999e-05,2]
[342350541,1731765041118,-3530.86,9.999e-05,2]
[342350542,1731765041128,-3530.86,9.999e-05,2]
[342350543,1731765041137,-3530.99084481,9.999e-05,2]
[342350544,1731765041147,-3595.26,9.999e-05,2]
[342350545,1731765041157,-3595.26,9.999e-05,2]
[342350546,1731765041167,-3595.26,9.999e-05,2]
[342350547,1731765041177,-3595.26,9.999e-05,2]
[342350548,1731765041190,-3595.26,9.999e-05,2]
[342350549,1731765041200,-3595.26,9.999e-05,2]
[342350550,1731765041210,-3595.26,9.999e-05,2]
[342350551,1731765041220,-3595.26,9.999e-05,2]